Cogmind - Beta 13 @@@ ROGUE MODE // 2024.05.06 @ 11:11:55 Player: Gabe+Kate4EVR Result: Destroyed by S-43 Plague with Heavy Machine Gun Performance ------------- Evolutions (7) 3500 Regions Visited (15) 3000 Robots Destroyed (16) 80 Value Destroyed (370) 370 Prototype IDs (5) 100 Alien Tech Used (0) 0 Bonus (706) 706 TOTAL SCORE: 7756 Bonus ------- High Alert Combat Kills 6 Entered Garrisons 200 Entered DSFs 500 Cogmind --------- Core Integrity 0/1300 Matter 7/300 Energy 100/100 System Corruption 5% Temperature Cool (0) Movement Core (50) Location -3/Research Parts ------- > --- POWER (2) -------- (None) > --- PROPULSION (11) -- (None) > --- UTILITY (6) ------ (None) > --- WEAPON (2) ------- (None) > --- INVENTORY (5) ---- Quantum Reactor Quantum Reactor Advanced ECM Suite Point Defense Array System Restoration Module Peak State ------------ > --- POWER ------------ Cooled Ion Engine Light Antimatter Reactor > --- PROPULSION ------- Improved VTOL Module Improved VTOL Module Improved VTOL Module Nuclear Pulse Array Field Propulsion Array > --- UTILITY ---------- Advanced Cryofiber Web Advanced Cryofiber Web Medium Storage Unit Advanced Transmission Jammer > --- WEAPON ----------- Magnetic Acceleration Cannon Mini Grenade Launcher > --- INVENTORY -------- Improved Gyrokinetic Inverter Improved Gyrokinetic Inverter Quantum Capacitor Graphene Brace Point Defense Array System Restoration Module Advanced Beam Cannon Mini Grenade Launcher Mace [Rating: 82] Favorites ----------- Power Light Angular Momentum Engine Engine Light Angular Momentum Engine Power Core Light Fission Core Reactor Light Antimatter Reactor Propulsion Improved VTOL Module Leg Aluminum Leg Wheel Centrium Wheel Hover Unit Improved Gyrokinetic Inverter Flight Unit Improved VTOL Module Utility Medium Storage Unit Device Advanced Cryofiber Web Storage Medium Storage Unit Processor Targeting Computer Hackware Hacking Suite Weapon Advanced Beam Cannon Energy Gun Small Laser Energy Cannon Advanced Beam Cannon Ballistic Gun Assault Rifle Ballistic Cannon Magnetic Acceleration Cannon Launcher Mini Grenade Launcher Build | -11 -10 -9 -9 -8 -8 -7 -7 -6 -6 -6 -5 -4 -3 -3 -3 ------- Run | Yrd Mat Mat Min Mat Sto Fac DSF Fac Low Low Fac Fac Res Gar Res Slots Evolved 14 | . . 2 . 2 . 2 . 2 . . 2 2 2 . . Power 1 | . . . . . . . . . . . 1 . . . . Propulsion 9 | . . 2 . 2 . 2 . 2 . . . 1 . . . Utility 4 | . . . . . . . . . . . 1 1 2 . . Weapon . | . . . . . . . . . . . . . . . . Parts Attached 86 | 6 5 10 1 7 10 2 . 4 1 . 12 17 5 3 3 Power 19 | 1 1 . . 2 1 . . 2 . . 6 3 1 1 1 Engine 9 | 1 1 . . 1 1 . . 1 . . 2 1 1 . . Core 7 | . . . . 1 . . . 1 . . 4 1 . . . Reactor 3 | . . . . . . . . . . . . 1 . 1 1 Propulsion 31 | 2 2 2 1 3 5 2 . 2 1 . 2 6 2 1 . Treads . | . . . . . . . . . . . . . . . . Leg 3 | 2 . . . . . . . . . . . 1 . . . Wheel 1 | . . . . . . . . . . . . 1 . . . Hover 3 | . . . . . . . . . . . . . 2 1 . Flight 24 | . 2 2 1 3 5 2 . 2 1 . 2 4 . . . Utility 20 | 1 1 4 . 2 . . . . . . 3 6 1 1 1 Device 11 | . . . . . . . . . . . 2 6 1 1 1 Storage 5 | 1 . 4 . . . . . . . . . . . . . Processor 2 | . 1 . . . . . . . . . 1 . . . . Hackware 2 | . . . . 2 . . . . . . . . . . . Protection . | . . . . . . . . . . . . . . . . Artifact . | . . . . . . . . . . . . . . . . Weapon 16 | 2 1 4 . . 4 . . . . . 1 2 1 . 1 Energy Gun 8 | 1 . 3 . . 3 . . . . . . . 1 . . Energy Cannon 2 | . . . . . 1 . . . . . . . . . 1 Ballistic Gun 2 | 1 1 . . . . . . . . . . . . . . Ballistic Cannon 2 | . . 1 . . . . . . . . . 1 . . . Launcher 2 | . . . . . . . . . . . 1 1 . . . Special Weapon . | . . . . . . . . . . . . . . . . Impact Weapon . | . . . . . . . . . . . . . . . . Slashing Weapon . | . . . . . . . . . . . . . . . . Piercing Weapon . | . . . . . . . . . . . . . . . . Special Melee Weapon . | . . . . . . . . . . . . . . . . Unidentified Prototypes 5 | . . . . . 5 . . . . . . . . . . Parts Lost 31 | . . . . . 1 . . . . . 2 19 . 9 . Power 3 | . . . . . . . . . . . . 1 . 2 . Propulsion 19 | . . . . . 1 . . . . . 2 13 . 3 . Utility 7 | . . . . . . . . . . . . 4 . 3 . Weapon 2 | . . . . . . . . . . . . 1 . 1 . Highest Loss Streak 10 | . . . . . 1 . . . . . 2 10 . 8 . To Critical Strikes . | . . . . . . . . . . . . . . . . Average Slot Usage (%) 69 | . 75 88 100 100 100 100 100 100 100 100 90 71 18 19 . Engine 4 | . 14 11 11 3 8 7 7 2 6 6 5 2 . . . Core 2 | . . . . 5 1 . . 3 . . 5 3 . . . Leg 1 | . 17 . . . . . . . . . . . . . . Hover 1 | . . . . . . . . . . . . . 8 6 . Flight 34 | . 10 39 44 54 54 61 61 66 66 66 52 38 . . . Device 5 | . . . . . . . . . . . 5 12 4 8 . Storage 5 | . 14 11 11 9 9 7 7 6 6 6 5 4 . . . Processor 1 | . . 11 11 5 . . . . . . 2 . . . . Hackware 1 | . . . . 3 9 7 7 6 6 6 2 . . . . Energy Gun 4 | . 9 16 22 18 15 7 7 6 6 6 1 . 3 1 . Energy Cannon 2 | . . . . . 3 7 7 6 6 6 5 3 . . . Naked Turns 89 | . . . . . . . . . . . . . . 16 73 Heaviest Build 42 | 13 13 15 15 19 24 24 24 25 25 25 33 42 10 32 3 Greatest Support 51 | 20 20 16 16 24 28 36 36 42 42 26 47 51 47 47 3 Greatest Overweight (x) 1 | . 1 . . . . . . . 1 . . 1 . 1 . Average Overweight (x) . | . . . . . . . . . . . . . . . . Largest Inventory Capacity 10 | 8 8 10 10 10 10 10 10 10 10 10 10 10 5 5 5 Average Capacity 8 | 6 8 8 10 10 10 10 10 10 10 10 10 9 5 5 5 Most Carried 10 | 5 8 10 10 10 10 9 10 10 10 10 10 10 5 5 5 Average Carried 7 | 3 6 6 10 9 9 8 8 9 9 10 9 9 4 3 4 Final Capacity 10 | 8 8 10 10 10 10 10 10 10 10 10 10 5 5 5 5 Final Carried 10 | 5 8 10 10 10 10 8 10 10 10 10 10 5 4 4 5 Class Distribution -------------------- 41% | Scavenger-Sprinter 36% | Mutant 14% | Sprinter 7% | Scavenger-Mutant Dominant Class ---------------- Mutant | -10/Materials Scavenger-Mutant | -9/Materials Scavenger-Sprinter | -9/Mines Scavenger-Sprinter | -8/Materials Sprinter | -8/Storage Sprinter | -7/Factory Sprinter | -7/DSF Scavenger-Sprinter | -6/Factory Scavenger-Mutant | -6/Lower Caves Scavenger-Mutant | -6/Lower Caves Scavenger-Sprinter | -5/Factory Scavenger-Sprinter | -4/Factory Mutant | -3/Research Mutant | -3/Garrison Mutant | -3/Research Resources | -11 -10 -9 -9 -8 -8 -7 -7 -6 -6 -6 -5 -4 -3 -3 -3 ----------- Run | Yrd Mat Mat Min Mat Sto Fac DSF Fac Low Low Fac Fac Res Gar Res Matter Collected 855 | 225 44 98 44 . 206 . 16 . 61 . 93 54 14 . . Remotely . | . . . . . . . . . . . . . . . . Salvage Created 427 | . 44 98 44 . . . . . . . 180 47 14 . . Parts 26 | . 6 7 3 . . . . . . . 5 3 2 . . Haulers Intercepted 3 | . . 2 . . . . . . . . 1 . . . . Recyclers Shooed 3 | . 1 1 . . . . . . . . . . 1 . . Parts Field Recycled . | . . . . . . . . . . . . . . . . Retrieved Matter . | . . . . . . . . . . . . . . . . Parts Self-Destructed 5 | . . . . . . . . . 5 . . . . . . Prevented . | . . . . . . . . . . . . . . . . Kills | -11 -10 -9 -9 -8 -8 -7 -7 -6 -6 -6 -5 -4 -3 -3 -3 ------- Run | Yrd Mat Mat Min Mat Sto Fac DSF Fac Low Low Fac Fac Res Gar Res Combat Hostiles Destroyed 12 | . 3 . 3 . . . . . . . 2 4 . . . Guns 6 | . 3 . 3 . . . . . . . . . . . . Cannons 1 | . . . . . . . . . . . . 1 . . . AOE 5 | . . . . . . . . . . . 2 3 . . . Classes Destroyed 4 | . 1 1 . . . . . . . . 1 . 1 . . Worker 1 | . . . . . . . . . . . . . 1 . . Hauler 3 | . . 2 . . . . . . . . 1 . . . . Swarmer 10 | . 3 . 3 . . . . . . . . 4 . . . Hunter 2 | . . . . . . . . . . . 2 . . . . Best Kill Streak 4 | . 3 1 3 . . . . . . . 2 4 1 . . Combat Bots Only 4 | . 3 . 3 . . . . . . . 2 4 . . . Max Kills in Single Turn 3 | . 1 1 1 . . . . . . . 2 3 1 . . Gunslinging . | . . . . . . . . . . . . . . . . Exploded 3 | . . . . . . . . . . . 2 3 . . . Melee . | . . . . . . . . . . . . . . . . Uniques/NPCs Destroyed . | . . . . . . . . . . . . . . . . Combat | -11 -10 -9 -9 -8 -8 -7 -7 -6 -6 -6 -5 -4 -3 -3 -3 -------- Run | Yrd Mat Mat Min Mat Sto Fac DSF Fac Low Low Fac Fac Res Gar Res Hostile Shots Fired 430 | . 32 . 7 9 9 . 9 . . . 37 145 12 151 19 Missed 161 | . 9 . 1 6 6 . 5 . . . 11 48 5 63 7 Damage Taken 5185 | . 186 . 50 61 51 . 137 . . . 410 2069 166 1786 269 Core 2440 | . 67 . 15 . 17 . 37 . . . 110 885 23 1017 269 Absorbed by Shields 47 | . . . . . . . . . . . . . . 47 . Core Remaining (%) 83 | 100 73 . 96 . 96 . 94 . . 100 89 23 . . . Volleys Fired 50 | . 13 6 4 . 5 . . . . . 8 7 5 2 . Largest 2 | . 2 2 2 . 2 . . . . . 2 2 1 1 . Hottest 129 | . 60 80 80 . 129 . . . . . 129 121 94 94 . Shots Fired 88 | . 26 12 8 . 10 . . . . . 16 9 5 2 . Gun 63 | . 26 12 8 . 5 . . . . . 5 . 5 2 . Cannon 21 | . . . . . 5 . . . . . 8 8 . . . Launcher 4 | . . . . . . . . . . . 3 1 . . . Special . | . . . . . . . . . . . . . . . . Kinetic 20 | . 13 . . . . . . . . . . 7 . . . Thermal 64 | . 13 12 8 . 10 . . . . . 13 1 5 2 . Explosive 4 | . . . . . . . . . . . 3 1 . . . Electromagnetic . | . . . . . . . . . . . . . . . . Robot Hit Streak 8 | . 4 3 3 . 6 . . . . . 8 2 3 1 . Robot Miss Streak 9 | . 9 2 2 . 2 . . . . . 2 5 1 1 . Penetration Max . | . . . . . . . . . . . . . . . . Secondary Targets . | . . . . . . . . . . . . . . . . Shots Hit Robots 47 | . 11 8 5 . 7 . . . . . 8 4 3 1 . Core Hits 27 | . 4 4 3 . 1 . . . . . 8 4 2 1 . Critical Kills . | . . . . . . . . . . . . . . . . Critical Parts Destroyed . | . . . . . . . . . . . . . . . . Critical Strikes 2 | . . . . . . . . . . . 2 . . . . Burn 2 | . . . . . . . . . . . 2 . . . . Melee Attacks . | . . . . . . . . . . . . . . . . Impact . | . . . . . . . . . . . . . . . . Slashing . | . . . . . . . . . . . . . . . . Piercing . | . . . . . . . . . . . . . . . . Sneak Attacks . | . . . . . . . . . . . . . . . . Combat Hostiles . | . . . . . . . . . . . . . . . . Follow-up Attacks . | . . . . . . . . . . . . . . . . Damage Inflicted 1328 | . 142 88 55 . 140 . . . . . 355 405 87 55 1 Guns 539 | . 142 88 55 . 60 . . . . . 80 . 87 27 . Cannons 360 | . . . . . 80 . . . . . 101 179 . . . Explosions 400 | . . . . . . . . . . . 174 226 . . . Melee . | . . . . . . . . . . . . . . . . Ramming 29 | . . . . . . . . . . . . . . 28 1 Kinetic 248 | . 89 . . . . . . . . . . 159 . . . Thermal 651 | . 53 88 55 . 140 . . . . . 181 20 87 27 . Explosive 400 | . . . . . . . . . . . 174 226 . . . Electromagnetic . | . . . . . . . . . . . . . . . . Impact . | . . . . . . . . . . . . . . . . Slashing . | . . . . . . . . . . . . . . . . Piercing . | . . . . . . . . . . . . . . . . Highest Corruption 5 | . . . . . . . . . . . . 1 1 5 5 Average Corruption 2 | . . . . . . . . . . . . 1 1 1 5 Corruption Purged . | . . . . . . . . . . . . . . . . Corruption Blocked . | . . . . . . . . . . . . . . . . Effects 7 | . . . . . . . . . . . . 2 . 2 3 Message Errors 2 | . . . . . . . . . . . . 1 . 1 . Matter Fused 1 | . . . . . . . . . . . . . . . 1 Heat Flow Errors 1 | . . . . . . . . . . . . . . . 1 Parts Fused 1 | . . . . . . . . . . . . 1 . . . Data Loss (major) 2 | . . . . . . . . . . . . . . 1 1 Overload Shots . | . . . . . . . . . . . . . . . . Overflow Damage 42 | . . . . . . . . . . . 2 40 . . . Projectiles 24 | . . . . . . . . . . . . 24 . . . Explosions 18 | . . . . . . . . . . . 2 16 . . . Melee . | . . . . . . . . . . . . . . . . Knockbacks 2 | . . . . . . . . . . . . 2 . . . Impact . | . . . . . . . . . . . . . . . . Kinetic 2 | . . . . . . . . . . . . 2 . . . Secondary . | . . . . . . . . . . . . . . . . Self-Inflicted Damage 99 | . . . . . . . . . . . 46 39 . 14 . Shots 2 | . . . . . . . . . . . 1 1 . . . Rammed 3 | . . . . . . . . . . . . . . 2 1 Targets Rammed 3 | . . . . . . . . . . . . . . 2 1 Kicked . | . . . . . . . . . . . . . . . . Crushed . | . . . . . . . . . . . . . . . . Highest Temperature 545 | . . 92 84 78 351 25 33 412 239 55 545 481 36 56 97 Average Temperature 170 | . . 36 39 32 113 25 16 193 117 31 222 216 19 34 51 Received Heat Transfer 198 | . . . . 18 27 . . . . . 18 96 . 39 . Effects 22 | . . . . . . . . 1 . . 19 2 . . . Shutdowns 10 | . . . . . . . . 1 . . 9 . . . . Energy Bleed 2 | . . . . . . . . . . . 2 . . . . Interference 1 | . . . . . . . . . . . 1 . . . . Matter Decay 3 | . . . . . . . . . . . 3 . . . . Short Circuit 2 | . . . . . . . . . . . 2 . . . . Damage (minor) 2 | . . . . . . . . . . . 2 . . . . Damage (major) 2 | . . . . . . . . . . . . 2 . . . Siege Activations . | . . . . . . . . . . . . . . . . Robots Corrupted . | . . . . . . . . . . . . . . . . Combat Hostiles . | . . . . . . . . . . . . . . . . Parts Fried . | . . . . . . . . . . . . . . . . Impact Corruptions . | . . . . . . . . . . . . . . . . Robots Melted . | . . . . . . . . . . . . . . . . Combat Hostiles . | . . . . . . . . . . . . . . . . Parts Melted 1 | . . . . . . . . . . . 1 . . . . Heat Transferred 1305 | . 125 200 125 . 189 . . . . . 481 37 111 37 . Parts Sabotaged . | . . . . . . . . . . . . . . . . Parts Stolen . | . . . . . . . . . . . . . . . . Parts Stripped . | . . . . . . . . . . . . . . . . Power Chain Reactions . | . . . . . . . . . . . . . . . . Alert | -11 -10 -9 -9 -8 -8 -7 -7 -6 -6 -6 -5 -4 -3 -3 -3 ------- Run | Yrd Mat Mat Min Mat Sto Fac DSF Fac Low Low Fac Fac Res Gar Res Peak Influence 415 | . 100 29 80 61 120 42 47 43 . . 316 415 214 282 153 Initial 194 | . . . 10 31 25 42 32 24 . . 12 154 194 178 153 Average 143 | . 46 16 72 41 76 42 41 27 . . 141 244 196 198 153 Maximum Alert Level 2 | . . . . . . . . . . . 1 2 1 1 . Low Security (%) 75 | 100 100 100 100 100 100 100 100 100 . . 58 45 89 64 100 Level 1 22 | . . . . . . . . . . . 41 44 10 35 . Level 2 2 | . . . . . . . . . . . . 9 . . . Level 3 . | . . . . . . . . . . . . . . . . Level 4 . | . . . . . . . . . . . . . . . . Level 5 . | . . . . . . . . . . . . . . . . High Security . | . . . . . . . . . . . . . . . . Max Security . | . . . . . . . . . . . . . . . . Squads Dispatched 15 | . . . . 1 3 . 1 1 . . 4 4 . . 1 Investigation 2 | . . . . . . . . . . . 1 1 . . . Extermination 2 | . . . . . . . . . . . 1 1 . . . Reinforcement 9 | . . . . 1 1 . 1 1 . . 2 2 . . 1 Assault 2 | . . . . . 2 . . . . . . . . . . Garrison . | . . . . . . . . . . . . . . . . Intercept . | . . . . . . . . . . . . . . . . Searches Triggered 1 | . . . . . . . . . . . . 1 . . . Construction Impeded 1 | . . . . . . . . . . . 1 . . . . Haulers Reinforced . | . . . . . . . . . . . . . . . . Active Scanning Responses . | . . . . . . . . . . . . . . . . Cargo Convoy Interrupts . | . . . . . . . . . . . . . . . . Stealth | -11 -10 -9 -9 -8 -8 -7 -7 -6 -6 -6 -5 -4 -3 -3 -3 --------- Run | Yrd Mat Mat Min Mat Sto Fac DSF Fac Low Low Fac Fac Res Gar Res Distress Signals 2 | . . . . . . . . . . . 1 1 . . . Communications Jammed . | . . . . . . . . . . . . . . . . Distress Signals . | . . . . . . . . . . . . . . . . Times Spotted 120 | . 5 3 2 6 20 . 4 1 . . 15 38 3 16 7 Peak Tracking Total 18 | . 3 3 2 5 16 . 4 1 . . 10 13 3 18 6 Tactical Retreats 15 | . 1 . . . 2 . . . . . 3 7 1 1 . Traps | -11 -10 -9 -9 -8 -8 -7 -7 -6 -6 -6 -5 -4 -3 -3 -3 ------- Run | Yrd Mat Mat Min Mat Sto Fac DSF Fac Low Low Fac Fac Res Gar Res Traps Triggered 2 | . . . . . . . . . . . . . 1 1 . Indirectly . | . . . . . . . . . . . . . . . . Trap Hack Attempts . | . . . . . . . . . . . . . . . . Triggered . | . . . . . . . . . . . . . . . . Disarmed . | . . . . . . . . . . . . . . . . Reprogrammed . | . . . . . . . . . . . . . . . . Reused . | . . . . . . . . . . . . . . . . Traps Extracted . | . . . . . . . . . . . . . . . . Installed . | . . . . . . . . . . . . . . . . Triggered . | . . . . . . . . . . . . . . . . Machines | -11 -10 -9 -9 -8 -8 -7 -7 -6 -6 -6 -5 -4 -3 -3 -3 ---------- Run | Yrd Mat Mat Min Mat Sto Fac DSF Fac Low Low Fac Fac Res Gar Res Machines Disabled 5 | . . . . . . . . . . . 5 . . . . Max in Single Turn 2 | . . . . . . . . . . . 2 . . . . Machines Repaired . | . . . . . . . . . . . . . . . . Machines Dismantled . | . . . . . . . . . . . . . . . . Machines Sabotaged . | . . . . . . . . . . . . . . . . Overloaded Fab Kills . | . . . . . . . . . . . . . . . . Hacking | -11 -10 -9 -9 -8 -8 -7 -7 -6 -6 -6 -5 -4 -3 -3 -3 --------- Run | Yrd Mat Mat Min Mat Sto Fac DSF Fac Low Low Fac Fac Res Gar Res Machines Accessed 12 | . 2 . . . 1 1 . 1 . . 2 3 1 1 . Terminals 11 | . 2 . . . 1 1 . 1 . . 2 3 . 1 . Fabricators . | . . . . . . . . . . . . . . . . Repair Stations . | . . . . . . . . . . . . . . . . Recycling Units . | . . . . . . . . . . . . . . . . Scanalyzers . | . . . . . . . . . . . . . . . . Garrison Access 1 | . . . . . . . . . . . . . 1 . . Total Hacks 18 | . 2 . . . 1 1 . 1 . . 4 6 1 2 . Successful 9 | . 1 . . . 1 1 . 1 . . 1 2 1 1 . Failed 9 | . 1 . . . . . . . . . 3 4 . 1 . Catastrophic 2 | . . . . . . . . . . . . 2 . . . Database Lockouts . | . . . . . . . . . . . . . . . . Manual 10 | . 2 . . . . . . . . . 3 5 . . . Terminals 17 | . 2 . . . 1 1 . 1 . . 4 6 . 2 . Fabricators . | . . . . . . . . . . . . . . . . Repair Stations . | . . . . . . . . . . . . . . . . Recycling Units . | . . . . . . . . . . . . . . . . Scanalyzers . | . . . . . . . . . . . . . . . . Garrison Access 1 | . . . . . . . . . . . . . 1 . . Terminal Hacks 7 | . 1 . . . 1 1 . 1 . . 1 1 . 1 . Record 2 | . . . . . . . . . . . 1 1 . . . Open Door 1 | . . . . . 1 . . . . . . . . . . Open DSF 2 | . . . . . . 1 . 1 . . . . . . . Unreport Threat 1 | . 1 . . . . . . . . . . . . . . Garrison Registry 1 | . . . . . . . . . . . . . . 1 . Fabricator Hacks . | . . . . . . . . . . . . . . . . Repair Station Hacks . | . . . . . . . . . . . . . . . . Recycling Unit Hacks . | . . . . . . . . . . . . . . . . Scanalyzer . | . . . . . . . . . . . . . . . . Garrison Access Hacks 1 | . . . . . . . . . . . . . 1 . . Unlock Access 1 | . . . . . . . . . . . . . 1 . . Unauthorized Hacks 1 | . . . . . . . . . . . . 1 . . . Terminals 1 | . . . . . . . . . . . . 1 . . . Assimilate 1 | . . . . . . . . . . . . 1 . . . Fabricators . | . . . . . . . . . . . . . . . . Repair Stations . | . . . . . . . . . . . . . . . . Recycling Units . | . . . . . . . . . . . . . . . . Scanalyzers . | . . . . . . . . . . . . . . . . Garrison Access . | . . . . . . . . . . . . . . . . Data Cores Recovered . | . . . . . . . . . . . . . . . . Used . | . . . . . . . . . . . . . . . . Hacking Detections 10 | . 2 . . . . 1 . . . . 2 3 1 1 . Full Trace Events 3 | . . . . . . . . . . . 1 1 . 1 . Feedback Events . | . . . . . . . . . . . . . . . . Feedback Blocked . | . . . . . . . . . . . . . . . . Robot Schematics Acquired . | . . . . . . . . . . . . . . . . Robots Built . | . . . . . . . . . . . . . . . . Authchips . | . . . . . . . . . . . . . . . . Time . | . . . . . . . . . . . . . . . . Total Robot Build Rating . | . . . . . . . . . . . . . . . . Part Schematics Acquired . | . . . . . . . . . . . . . . . . Parts Built . | . . . . . . . . . . . . . . . . Authchips . | . . . . . . . . . . . . . . . . Time . | . . . . . . . . . . . . . . . . Total Part Build Rating . | . . . . . . . . . . . . . . . . Parts Repaired . | . . . . . . . . . . . . . . . . Time . | . . . . . . . . . . . . . . . . Parts Recycled . | . . . . . . . . . . . . . . . . Recycled Matter . | . . . . . . . . . . . . . . . . Retrieved Matter . | . . . . . . . . . . . . . . . . Retrieved Components . | . . . . . . . . . . . . . . . . Parts Scanalyzed . | . . . . . . . . . . . . . . . . Part Schematics Acquired . | . . . . . . . . . . . . . . . . Parts Damaged . | . . . . . . . . . . . . . . . . Bothacking | -11 -10 -9 -9 -8 -8 -7 -7 -6 -6 -6 -5 -4 -3 -3 -3 ------------ Run | Yrd Mat Mat Min Mat Sto Fac DSF Fac Low Low Fac Fac Res Gar Res Used RIF Installer . | . . . . . . . . . . . . . . . . Robots Hacked . | . . . . . . . . . . . . . . . . Non-combat . | . . . . . . . . . . . . . . . . Combat . | . . . . . . . . . . . . . . . . Robot Hacks Applied . | . . . . . . . . . . . . . . . . Relay Couplers Released . | . . . . . . . . . . . . . . . . Fabnet Peak Effective % . | . . . . . . . . . . . . . . . . Robots Rewired . | . . . . . . . . . . . . . . . . Allies Hacked . | . . . . . . . . . . . . . . . . Hacks Repelled . | . . . . . . . . . . . . . . . . Allies | -11 -10 -9 -9 -8 -8 -7 -7 -6 -6 -6 -5 -4 -3 -3 -3 -------- Run | Yrd Mat Mat Min Mat Sto Fac DSF Fac Low Low Fac Fac Res Gar Res Total Allies 2 | . . . . . 2 . . . . . . . . . . Largest Group 2 | . . . . . 2 . . . . . . . . . . Highest-Rated Group 62 | . . . . . 62 . . . . . . . . . . Highest-Rated Ally 31 | . . . . . 31 . . . . . . . . . . Total Orders . | . . . . . . . . . . . . . . . . Ally Attacks 17 | . . . . . 17 . . . . . . . . . . Total Damage 215 | . . . . . 215 . . . . . . . . . . Kills . | . . . . . . . . . . . . . . . . Allies Corrupted . | . . . . . . . . . . . . . . . . Allies Melted . | . . . . . . . . . . . . . . . . Intel | -11 -10 -9 -9 -8 -8 -7 -7 -6 -6 -6 -5 -4 -3 -3 -3 ------- Run | Yrd Mat Mat Min Mat Sto Fac DSF Fac Low Low Fac Fac Res Gar Res Robot Analysis Total . | . . . . . . . . . . . . . . . . Derelict Logs Recovered . | . . . . . . . . . . . . . . . . Drone Launches . | . . . . . . . . . . . . . . . . Drone Recoveries . | . . . . . . . . . . . . . . . . Exploration | -11 -10 -9 -9 -8 -8 -7 -7 -6 -6 -6 -5 -4 -3 -3 -3 ------------- Run | Yrd Mat Mat Min Mat Sto Fac DSF Fac Low Low Fac Fac Res Gar Res Turns Passed 1983 | 93 185 106 36 57 90 4 15 76 124 5 265 529 198 116 84 Spaces Moved 3118 | 69 210 184 39 167 171 10 58 197 238 24 499 851 112 141 148 Core 278 | 4 . . . . . . . . . . . 44 14 68 148 Treads . | . . . . . . . . . . . . . . . . Legs 115 | 65 49 . . . . . . . . . . 1 . . . Wheels . | . . . . . . . . . . . . . . . . Hover 171 | . . . . . . . . . . . . . 98 73 . Flight 2554 | . 161 184 39 167 171 10 58 197 238 24 499 806 . . . Fastest Speed 10 | 50 37 31 31 24 21 16 16 10 10 19 10 10 50 50 50 Average Speed 31 | 115 58 32 31 24 21 16 16 14 50 19 14 21 59 57 50 Slowest Speed 190 | 120 120 34 31 25 24 16 16 21 89 19 15 190 61 110 50 Overloaded Moves . | . . . . . . . . . . . . . . . . Propulsion Burnouts . | . . . . . . . . . . . . . . . . Robots Hopped 48 | . . . . 6 9 . . 1 . . 10 22 . . . Cave-ins Triggered . | . . . . . . . . . . . . . . . . Exploration Rate (%) 20 | 4 35 23 4 18 30 . 50 5 45 6 21 27 5 32 7 Regions Visited 15 Branch Regions 4 Pre-discovered Areas . | . . . . . . . . . . . . . . . . Known Exits Taken 2 | . . . . . . 1 . . . . . . 1 . . Unknown Exits Taken 11 | 1 1 1 1 1 1 . . 1 1 1 1 1 . . . Scrap Searched 4 | . . . . . . . . . 3 1 . . . . . Spaces Dug . | . . . . . . . . . . . . . . . . Terrain Destroyed 19 | . . . . . . . . . . . 9 10 . . . Melee . | . . . . . . . . . . . . . . . . Projectile . | . . . . . . . . . . . . . . . . AOE 19 | . . . . . . . . . . . 9 10 . . . Terrain Rammed . | . . . . . . . . . . . . . . . . Walls Destroyed . | . . . . . . . . . . . . . . . . Machines Disabled . | . . . . . . . . . . . . . . . . Actions | -11 -10 -9 -9 -8 -8 -7 -7 -6 -6 -6 -5 -4 -3 -3 -3 --------- Run | Yrd Mat Mat Min Mat Sto Fac DSF Fac Low Low Fac Fac Res Gar Res Total 3965 | 79 249 219 54 176 208 11 65 241 240 23 664 1169 236 173 158 Wait 654 | . 3 2 10 3 17 . . 41 . . 149 299 114 13 3 Move 3018 | 68 209 183 38 156 155 9 57 194 237 23 478 811 112 140 148 Hop 38 | . . . . 4 6 . . 1 . . 10 17 . . . Pick Up 47 | 5 9 9 . 2 3 . 5 1 1 . 3 5 . 4 . Fast Attach 37 | 6 3 3 . 1 5 . . . . . 2 10 4 1 2 Attach 20 | . . 3 . 2 1 2 . 2 . . 2 4 1 2 1 Detach 8 | . . . . 1 1 . . . . . 2 2 . . 2 Swap 29 | . 2 4 1 4 4 . . 2 1 . 8 3 . . . Drop 53 | . 10 9 1 3 11 . 3 . 1 . 2 11 . 1 1 Fire 50 | . 13 6 4 . 5 . . . . . 8 7 5 2 . Melee . | . . . . . . . . . . . . . . . . Ram 3 | . . . . . . . . . . . . . . 2 1 Kick . | . . . . . . . . . . . . . . . . Crush . | . . . . . . . . . . . . . . . . Escape Stasis 8 | . . . . . . . . . . . . . . 8 . Rewire . | . . . . . . . . . . . . . . . . Trap . | . . . . . . . . . . . . . . . . Miscellaneous . | . . . . . . . . . . . . . . . . Route ------- -11/Scrapyard -10/Materials (discovered 2 exits: [*Mat] / [*Min]) -9/Materials -9/Mines -8/Materials -8/Storage -7/Factory -7/DSF -6/Factory -6/Lower Caves -6/Lower Caves -5/Factory -4/Factory -3/Research -3/Garrison (discovered 3 exits: [*Res x3]) -3/Research History --------- Turn | Location | Event 3 | -11/Scrapyard | Discovered new exit (range 15) 94 | -11/Scrapyard | Entered Materials 232 | -10/Materials | Discovered new exit (range 15) 252 | -10/Materials | Discovered new exit (range 9) 279 | -10/Materials | Entered another Materials area 279 | -9/Materials | Evolved 2 slots: Propulsion x2 372 | -9/Materials | Discovered new exit (range 5) 385 | -9/Materials | Entered Mines 400 | -9/Mines | Discovered new exit (range 12) 421 | -9/Mines | Entered Materials 421 | -8/Materials | Evolved 2 slots: Propulsion x2 475 | -8/Materials | Discovered new exit (range 10) 478 | -8/Materials | Entered Storage 518 | -8/Storage | Met a pair of Derelict thieves 566 | -8/Storage | Discovered new exit (range 9) 568 | -8/Storage | Entered Factory 568 | -7/Factory | Evolved 2 slots: Propulsion x2 572 | -7/Factory | Identified exit to DSF 572 | -7/Factory | Entered DSF 581 | -7/DSF | Discovered new exit (range 12) 587 | -7/DSF | Entered Factory 587 | -6/Factory | Evolved 2 slots: Propulsion x2 663 | -6/Factory | Discovered new exit (range 5) 663 | -6/Factory | Entered Lower Caves 774 | -6/Lower Caves | Encountered a Warlord checkpoint 786 | -6/Lower Caves | Discovered new exit (range 5) 787 | -6/Lower Caves | Entered another Lower Caves area 789 | -6/Lower Caves | Discovered new exit (range 11) 792 | -6/Lower Caves | Entered Factory 792 | -5/Factory | Evolved 2 slots: Power x1, Utility x1 1050 | -5/Factory | Discovered new exit (range 8) 1057 | -5/Factory | Entered another Factory area 1057 | -4/Factory | Evolved 2 slots: Propulsion x1, Utility x1 1078 | -4/Factory | Build established: Scavenger-Sprinter 1459 | -4/Factory | Lost 10 parts (1p7n2u) 1496 | -4/Factory | Spotted B-86 Titan 1523 | -4/Factory | Found Quantum Capacitor 1557 | -4/Factory | Search patrols dispatched 1567 | -4/Factory | Core integrity fell below 50% 1581 | -4/Factory | Discovered new exit (range 11) 1586 | -4/Factory | Entered Research 1586 | -3/Research | Evolved 2 slots: Utility x2 1595 | -3/Research | Lost 8 parts (5n2u1w) 1784 | -3/Research | Identified exit to Garrison 1784 | -3/Research | Entered Garrison 1809 | -3/Garrison | Build established: Mutant 1841 | -3/Garrison | Discovered new exit (range 63) 1841 | -3/Garrison | Discovered new exit (range 58) 1841 | -3/Garrison | Discovered new exit (range 81) 1856 | -3/Garrison | Spotted B-86 Titan 1862 | -3/Garrison | Triggered checkpoint 1881 | -3/Garrison | Core integrity fell below 50% 1900 | -3/Garrison | Entered Research 1915 | -3/Research | Lost 8 parts (1p3n3u1w) 1973 | -3/Research | Core integrity fell below 20% 1984 | -3/Research | Destroyed by S-43 Plague with Heavy Machine Gun Last Messages --------------- 01878_ Field strength at 16. 01879_ Field strength at 4. 01880_ System corrupted: Substantial component data lost. 01880_ Stasis field depleted. 01884_ Adv. Cryofiber Web destroyed. LOCATION=UNKNOWN GOAL=ESCAPE 01906_ Acquired Adv. ECM Suite. 01923_ System corrupted: Substantial component data lost. 01925_ O-24 Administrator: "IFF HANDSHAKE FAILED. SECURING TERMINAL." 01926_ ALERT: All DSF locations entering lockdown mode. 01930_ O-24 Administrator uses terminal to summon reinforcements. 01930_ ALERT: Hostiles spotted, dispatching reinforcements to Terminal R006. 01930_ O-24 Administrator locks terminal. 01945_ System corrupted: Heat flow error (+143). 01965_ Acquired HERF Cannon. 01966_ Dropped HERF Cannon. 01976_ System corrupted: Matter fused (-5). 01983_ Slammed into S-43 Plague. Map ----- +----------------------------------------------------+ | ?????????????????????????????????????????????? | | ?????????????????????????????????????????????? | | ?????????????????????????????????????????????? | | ?????????????????????????????????????????????? | | ?????????????????????????????????????????????? | | ?????????????????????????????????????????????? | | ???????????????????????????#+#######?????????? | | ????????????????????????? =#?????????? | | ?????????????????????????? #?????????? | | ????????????????????????? #?????????? | | ?????????????????????????"" #?????????? | | ?????????????????????????"" #?????????? | | ???????????????????????"""" #?????????? | | ??????????????????????#"""" ??????????? | | ??????????????????????# " ??????????? | | ??????????????????? + ???????????? | | ????????????????? # ? ???????????? | | ?????????????????# ?? ? ????????????? | | ?????????????????# ??? ? ????????????? | | ?????????????????# #####+###/#######??????? | | ?????????????????# +??????? | | ?????????????????# #######??????? | | ?????????????????# #????????????? | | ?????????????????+ #????????????? | | ?????????????????# #########+####?????????? | | ?????????????????# #]s@s #?????????? | | ??????????######## #] ss s ! #?????????? | | ??????????# # s #?????????? | | ??????????# #R #?????????? | | ??????????# + #?????????? | | ??????????# # #?????????? | | ??????????#+##+### # #?????????? | | ?????????????????# # """"""" #?????????? | | ?????????????????# # """"""" #?????????? | | ?????????????????# # """"""" #?????????? | | ?????????????????# # * #?????????? | | ?????????????????# # #?????????? | | ?????????????????# #########?####?????????? | | ?????????????????# #??????????????????????? | | ?????????????????# #??????????????????????? | | ?????????????????# #??????????????????????? | | ?????????????????# ##############?????????? | | ?????????????????# # #?????????? | | ?????????????????# + #?????????? | | ?????????????????# # """ """????????????? | | ?????????????????# # """ """ ?#?????????? | | ?????????????????# # """ """ #?????????? | | ?????????????????# # #?????????? | | ?????????????????# # #?????????? | | ?????????????????# # """ """ #?????????? | +----------------------------------------------------+ Best States ------------- Heat Dissipation 46 Energy Generation 39 Energy Capacity 350 Matter Stores 300 Matter Capacity 300 Sight Range 22 Terrain Scan Density 10 ECM Strength 2 Jamming Range 16 Power Amplification 20 Additional Mass Support 9 Base Temperature (-) 200 Evasion (%) 77 Targeting Accuracy 5 Offensive Hacking 10 Item Schematics ----------------- None Robot Schematics ------------------ None Fabricated ------------ Nothing Alien Tech Used ----------------- None Achievements -------------- Speed Demon Challenges ------------ None Game ------ Seed ImprinterWaveSource Manual? 0 Play Time 00:36:22 Cumulative 152.3 hours Start 2024.05.06 @ 10:33:03 End 2024.05.06 @ 11:11:55 Sessions 1 Manual Loads 0 Difficulty Rogue Special Mode None Game No. 305 Rogue 305 Adventurer 0 Explorer 0 Win Type - Total 0 Types 0/0/0/0/0/0/0/0/0 Lore% 38 Gallery% 58 Achievement% 41 Wizard Run 0 Options --------- Layout 0 ASCII 0 Keyboard 1 Movement Numpad Keybinds 0 Fullscreen 2 Font 18/X11 Map View 76x50 Zoom Use 0% Tactical HUD 1 Map Filters NONE Filters NONE Steam 1 RUN: 46155f3f-a8d9-4309-8d1c-0395dbe43c81